[Event "Late-Titled-Tuesday-Blitz-January-30-2024"]
[Site "Chess.com"]
[Date "2024.01.30"]
[Round "1"]
[White "ploddingpawn"]
[Black "Lennis93"]
[Result "1-0"]
[WhiteElo "2440"]
[BlackElo "2700"]
[TimeControl "180+1"]
[EndTime "14:05:48 PST"]
[Termination "ploddingpawn won by resignation"]

1. d4 {[%clk 0:03:00.9]} 1... Nf6 {[%clk 0:02:54.3]} 2. Bf4 {[%clk 0:02:58.7]}
2... d6 {[%clk 0:02:54]} 3. Nc3 {[%clk 0:02:56.2]} 3... g6 {[%clk 0:02:53.8]} 4.
e4 {[%clk 0:02:56.2]} 4... Bg7 {[%clk 0:02:54]} 5. Qd2 {[%clk 0:02:56.5]} 5...
h6 {[%clk 0:02:52.9]} 6. O-O-O {[%clk 0:02:50.3]} 6... a6 {[%clk 0:02:52.8]} 7.
Bd3 {[%clk 0:02:42.3]} 7... g5 {[%clk 0:02:49.8]} 8. Bg3 {[%clk 0:02:28.8]} 8...
Nh5 {[%clk 0:02:46.6]} 9. Nge2 {[%clk 0:02:24.5]} 9... Nc6 {[%clk 0:02:46.3]}
10. e5 {[%clk 0:02:03.4]} 10... dxe5 {[%clk 0:02:43.4]} 11. Bxe5 {[%clk
0:02:01.3]} 11... Nxe5 {[%clk 0:02:34.8]} 12. dxe5 {[%clk 0:01:59.9]} 12... Be6
{[%clk 0:02:34.3]} 13. Qe3 {[%clk 0:01:46.9]} 13... Qc8 {[%clk 0:02:34.3]} 14.
h3 {[%clk 0:01:37]} 14... c5 {[%clk 0:02:13.3]} 15. g4 {[%clk 0:01:34.5]} 15...
Nf4 {[%clk 0:02:13.5]} 16. Nxf4 {[%clk 0:01:33.2]} 16... gxf4 {[%clk 0:02:14.4]}
17. Qxf4 {[%clk 0:01:33]} 17... Qc7 {[%clk 0:02:15.3]} 18. Rhe1 {[%clk
0:01:29.2]} 18... h5 {[%clk 0:02:15.2]} 19. Kb1 {[%clk 0:01:29.1]} 19... hxg4
{[%clk 0:02:13.5]} 20. hxg4 {[%clk 0:01:30]} 20... O-O-O {[%clk 0:02:13.6]} 21.
Bf5 {[%clk 0:01:27.5]} 21... Bxf5 {[%clk 0:02:13.6]} 22. Qxf5+ {[%clk
0:01:28.3]} 22... e6 {[%clk 0:02:14.1]} 23. Qf4 {[%clk 0:01:27.4]} 23... Rxd1+
{[%clk 0:02:13.6]} 24. Nxd1 {[%clk 0:01:25.4]} 24... Kb8 {[%clk 0:02:01.6]} 25.
Nc3 {[%clk 0:01:25.2]} 25... Qc6 {[%clk 0:01:56.8]} 26. Qg5 {[%clk 0:01:20.7]}
26... Rh7 {[%clk 0:01:41.4]} 27. a3 {[%clk 0:01:17.8]} 27... Ka7 {[%clk
0:01:40.2]} 28. f4 {[%clk 0:01:04.5]} 28... Qd7 {[%clk 0:01:21.4]} 29. Rd1
{[%clk 0:01:02]} 29... Qc6 {[%clk 0:01:16.9]} 30. Qe7 {[%clk 0:00:54.2]} 30...
Rh2 {[%clk 0:01:02.9]} 31. Ne4 {[%clk 0:00:52.5]} 31... Kb6 {[%clk 0:00:44.2]}
32. Rd6 {[%clk 0:00:49.4]} 1-0

[Event "Late-Titled-Tuesday-Blitz-January-30-2024"]
[Site "Chess.com"]
[Date "2024.01.30"]
[Round "1"]
[White "dmitrijiIM"]
[Black "Alimpic"]
[Result "1-0"]
[WhiteElo "2905"]
[BlackElo "2501"]
[TimeControl "180+1"]
[EndTime "14:05:53 PST"]
[Termination "dmitrijiIM won by resignation"]

1. d4 {[%clk 0:03:00.9]} 1... d5 {[%clk 0:02:59.3]} 2. c4 {[%clk 0:03:00.6]}
2... e6 {[%clk 0:02:59.9]} 3. Nc3 {[%clk 0:03:00.4]} 3... c6 {[%clk 0:03:00.3]}
4. cxd5 {[%clk 0:02:55.4]} 4... exd5 {[%clk 0:03:01.2]} 5. Bf4 {[%clk
0:02:55.6]} 5... Bd6 {[%clk 0:03:01.2]} 6. Bxd6 {[%clk 0:02:55.6]} 6... Qxd6
{[%clk 0:03:02.1]} 7. e3 {[%clk 0:02:56.1]} 7... Ne7 {[%clk 0:02:59.9]} 8. Qf3
{[%clk 0:02:53.9]} 8... O-O {[%clk 0:02:48.1]} 9. Bd3 {[%clk 0:02:53.5]} 9...
Nd7 {[%clk 0:02:40.3]} 10. Nge2 {[%clk 0:02:52.7]} 10... Nf6 {[%clk 0:02:40]}
11. h3 {[%clk 0:02:53.4]} 11... a5 {[%clk 0:02:38]} 12. O-O {[%clk 0:02:48.8]}
12... Re8 {[%clk 0:02:34.4]} 13. Rfd1 {[%clk 0:02:41.2]} 13... g6 {[%clk
0:02:33.3]} 14. Ng3 {[%clk 0:02:38.8]} 14... Kg7 {[%clk 0:02:09.6]} 15. e4
{[%clk 0:02:33.7]} 15... dxe4 {[%clk 0:02:08.1]} 16. Ncxe4 {[%clk 0:02:28.8]}
16... Nxe4 {[%clk 0:02:07.8]} 17. Nxe4 {[%clk 0:02:28.9]} 17... Qd5 {[%clk
0:01:57.7]} 18. Qf6+ {[%clk 0:01:29]} 18... Kg8 {[%clk 0:01:56.6]} 19. Bc4
{[%clk 0:01:19.7]} 19... Qxc4 {[%clk 0:01:09.9]} 20. Nd6 {[%clk 0:01:19.6]}
20... Qe6 {[%clk 0:00:59.7]} 21. Nxe8 {[%clk 0:01:19.4]} 21... Qxf6 {[%clk
0:00:59.8]} 22. Nxf6+ {[%clk 0:01:20.3]} 22... Kg7 {[%clk 0:01:00.5]} 23. Ne4
{[%clk 0:01:20.3]} 23... Nd5 {[%clk 0:00:46.8]} 24. Nd6 {[%clk 0:01:19.4]} 24...
a4 {[%clk 0:00:42.2]} 25. Re1 {[%clk 0:01:15.4]} 25... Bf5 {[%clk 0:00:17.4]}
26. Nxb7 {[%clk 0:01:12.4]} 26... Rb8 {[%clk 0:00:17.6]} 27. Nc5 {[%clk
0:01:12.6]} 27... Rxb2 {[%clk 0:00:18.1]} 28. Nxa4 {[%clk 0:01:12.8]} 28... Nf4
{[%clk 0:00:16]} 29. Nxb2 {[%clk 0:01:12.4]} 1-0

[Event "Late-Titled-Tuesday-Blitz-January-30-2024"]
[Site "Chess.com"]
[Date "2024.01.30"]
[Round "1"]
[White "karinachess1"]
[Black "Karina_Ivanova"]
[Result "1-0"]
[WhiteElo "2618"]
[BlackElo "2282"]
[TimeControl "180+1"]
[EndTime "14:05:55 PST"]
[Termination "karinachess1 won by resignation"]

1. d4 {[%clk 0:03:00.9]} 1... Nf6 {[%clk 0:02:57.6]} 2. c4 {[%clk 0:03:00.9]}
2... e6 {[%clk 0:02:57]} 3. Nc3 {[%clk 0:03:00.9]} 3... Bb4 {[%clk 0:02:55.8]}
4. a3 {[%clk 0:03:01.2]} 4... Bxc3+ {[%clk 0:02:54.2]} 5. bxc3 {[%clk
0:03:02.1]} 5... b6 {[%clk 0:02:52.7]} 6. e3 {[%clk 0:03:02.6]} 6... Bb7 {[%clk
0:02:52]} 7. f3 {[%clk 0:03:03.2]} 7... d6 {[%clk 0:02:49.9]} 8. Bd3 {[%clk
0:03:03.5]} 8... Nbd7 {[%clk 0:02:48.4]} 9. Ne2 {[%clk 0:03:04.1]} 9... O-O
{[%clk 0:02:46.7]} 10. O-O {[%clk 0:03:04.3]} 10... e5 {[%clk 0:02:41.9]} 11. e4
{[%clk 0:03:04.6]} 11... Qe7 {[%clk 0:02:21]} 12. Bg5 {[%clk 0:03:00.6]} 12...
h6 {[%clk 0:02:17.1]} 13. Bh4 {[%clk 0:03:00.8]} 13... g5 {[%clk 0:02:09.7]} 14.
Bf2 {[%clk 0:02:54.3]} 14... Rfe8 {[%clk 0:02:00.6]} 15. Ng3 {[%clk 0:02:54]}
15... Qf8 {[%clk 0:01:30.1]} 16. Nf5 {[%clk 0:02:52.2]} 16... Nh5 {[%clk
0:01:22.8]} 17. g3 {[%clk 0:02:43.9]} 17... Ndf6 {[%clk 0:01:18.5]} 18. Be3
{[%clk 0:02:35.8]} 18... Bc8 {[%clk 0:01:17]} 19. Qc2 {[%clk 0:02:02.8]} 19...
Bxf5 {[%clk 0:01:15]} 20. exf5 {[%clk 0:02:03.7]} 20... Qg7 {[%clk 0:01:08.6]}
21. c5 {[%clk 0:02:00.6]} 21... Nf4 {[%clk 0:01:04.4]} 22. Bb5 {[%clk
0:01:56.9]} 22... Red8 {[%clk 0:00:58]} 23. Kh1 {[%clk 0:01:56.3]} 23... N4d5
{[%clk 0:00:56]} 24. Bg1 {[%clk 0:01:56.4]} 24... Ne7 {[%clk 0:00:40.1]} 25.
Rae1 {[%clk 0:01:49.1]} 25... Nfd5 {[%clk 0:00:32.4]} 26. c4 {[%clk 0:01:40.2]}
26... c6 {[%clk 0:00:26.2]} 27. cxd6 {[%clk 0:01:23.5]} 27... Rxd6 {[%clk
0:00:22.6]} 28. dxe5 {[%clk 0:01:23.4]} 28... Rdd8 {[%clk 0:00:19.3]} 29. f6
{[%clk 0:01:23.7]} 29... Nxf6 {[%clk 0:00:17.4]} 30. exf6 {[%clk 0:01:24.6]}
30... Qxf6 {[%clk 0:00:17.7]} 31. Ba4 {[%clk 0:01:12.6]} 1-0

[Event "Late-Titled-Tuesday-Blitz-January-30-2024"]
[Site "Chess.com"]
[Date "2024.01.30"]
[Round "1"]
[White "mishanick"]
[Black "kikoveiga"]
[Result "1-0"]
[WhiteElo "3142"]
[BlackElo "2541"]
[TimeControl "180+1"]
[EndTime "14:05:56 PST"]
[Termination "mishanick won by resignation"]

1. d4 {[%clk 0:03:00.9]} 1... Nf6 {[%clk 0:02:53.7]} 2. c4 {[%clk 0:03:01.4]}
2... e6 {[%clk 0:02:51.7]} 3. Nc3 {[%clk 0:03:01.9]} 3... d5 {[%clk 0:02:51.2]}
4. e3 {[%clk 0:03:02.5]} 4... Be7 {[%clk 0:02:50.9]} 5. Bd3 {[%clk 0:03:03]}
5... dxc4 {[%clk 0:02:50.5]} 6. Bxc4 {[%clk 0:03:03.1]} 6... a6 {[%clk
0:02:49.4]} 7. a4 {[%clk 0:03:01.1]} 7... c5 {[%clk 0:02:49.2]} 8. Nf3 {[%clk
0:03:00.8]} 8... Nc6 {[%clk 0:02:48.2]} 9. O-O {[%clk 0:02:59.6]} 9... cxd4
{[%clk 0:02:47.5]} 10. exd4 {[%clk 0:03:00.5]} 10... O-O {[%clk 0:02:47.7]} 11.
Re1 {[%clk 0:02:59.5]} 11... Nb4 {[%clk 0:02:43.5]} 12. Ne5 {[%clk 0:02:58.2]}
12... b6 {[%clk 0:02:36.4]} 13. Bg5 {[%clk 0:02:51.8]} 13... Bb7 {[%clk
0:02:35.6]} 14. Qd2 {[%clk 0:02:43.7]} 14... Nbd5 {[%clk 0:02:25.4]} 15. Rad1
{[%clk 0:02:34]} 15... Rc8 {[%clk 0:02:23.5]} 16. Bd3 {[%clk 0:02:33.8]} 16...
h6 {[%clk 0:02:20.4]} 17. Bh4 {[%clk 0:02:29.4]} 17... Qc7 {[%clk 0:02:13.6]}
18. Rc1 {[%clk 0:02:27.7]} 18... Qb8 {[%clk 0:02:07.2]} 19. Nxd5 {[%clk
0:02:22.9]} 19... Bxd5 {[%clk 0:01:58.5]} 20. Bxf6 {[%clk 0:01:43]} 20... Bxf6
{[%clk 0:01:59.4]} 21. Nd7 {[%clk 0:01:43.4]} 21... Bg5 {[%clk 0:01:55.5]} 22.
Qxg5 {[%clk 0:01:42.9]} 22... hxg5 {[%clk 0:01:53.5]} 23. Nxb8 {[%clk 0:01:42]}
23... Rxb8 {[%clk 0:01:54.4]} 24. Bxa6 {[%clk 0:01:41.9]} 24... Rfd8 {[%clk
0:01:46.8]} 25. Bb5 {[%clk 0:01:37.8]} 25... Bb3 {[%clk 0:01:34.9]} 26. Re3
{[%clk 0:01:36.3]} 26... Bd5 {[%clk 0:01:27.8]} 27. h3 {[%clk 0:01:34.1]} 27...
Bb7 {[%clk 0:00:58.1]} 28. Rc4 {[%clk 0:01:31.6]} 28... Rd5 {[%clk 0:00:57.6]}
29. Re5 {[%clk 0:01:25.1]} 29... Rbd8 {[%clk 0:00:52.1]} 30. Rc7 {[%clk
0:01:25.3]} 30... Rxe5 {[%clk 0:00:40.2]} 31. dxe5 {[%clk 0:01:25.5]} 31... Rd1+
{[%clk 0:00:40.9]} 32. Kh2 {[%clk 0:01:25.6]} 32... Bd5 {[%clk 0:00:41.7]} 33.
Rc2 {[%clk 0:01:17.2]} 33... Bb3 {[%clk 0:00:36.7]} 34. Rc3 {[%clk 0:01:16.9]}
34... Bd5 {[%clk 0:00:33.6]} 35. Rd3 {[%clk 0:01:10.6]} 35... Rb1 {[%clk
0:00:31.9]} 36. Rd2 {[%clk 0:01:10.9]} 36... Bb3 {[%clk 0:00:30]} 37. Rd8+
{[%clk 0:01:09.2]} 1-0

[Event "Late-Titled-Tuesday-Blitz-January-30-2024"]
[Site "Chess.com"]
[Date "2024.01.30"]
[Round "1"]
[White "shirovin"]
[Black "malakismayil"]
[Result "0-1"]
[WhiteElo "2051"]
[BlackElo "2561"]
[TimeControl "180+1"]
[EndTime "14:06:03 PST"]
[Termination "malakismayil won by resignation"]

1. e4 {[%clk 0:02:59.8]} 1... e5 {[%clk 0:02:59.8]} 2. Nf3 {[%clk 0:02:58.2]}
2... Nc6 {[%clk 0:03:00.2]} 3. Bb5 {[%clk 0:02:57.9]} 3... a6 {[%clk 0:03:00.2]}
4. Ba4 {[%clk 0:02:57.2]} 4... Nf6 {[%clk 0:03:00.8]} 5. O-O {[%clk 0:02:56.1]}
5... b5 {[%clk 0:03:01.4]} 6. Bb3 {[%clk 0:02:55.1]} 6... Be7 {[%clk 0:03:02.3]}
7. Re1 {[%clk 0:02:52.2]} 7... O-O {[%clk 0:02:59]} 8. h3 {[%clk 0:02:48.3]}
8... d6 {[%clk 0:02:56.3]} 9. a4 {[%clk 0:02:46]} 9... b4 {[%clk 0:02:56.1]} 10.
d3 {[%clk 0:02:43.4]} 10... a5 {[%clk 0:02:53.5]} 11. Nbd2 {[%clk 0:02:39.1]}
11... h6 {[%clk 0:02:53.1]} 12. Nf1 {[%clk 0:02:37.4]} 12... Be6 {[%clk
0:02:52.9]} 13. Ng3 {[%clk 0:02:29.2]} 13... Re8 {[%clk 0:02:52.7]} 14. c3
{[%clk 0:02:09.4]} 14... Rb8 {[%clk 0:02:47.9]} 15. Bxe6 {[%clk 0:02:01]} 15...
fxe6 {[%clk 0:02:47.5]} 16. d4 {[%clk 0:02:01.4]} 16... Bf8 {[%clk 0:02:35.2]}
17. dxe5 {[%clk 0:01:56.5]} 17... Nxe5 {[%clk 0:02:36.1]} 18. Nxe5 {[%clk
0:01:43.5]} 18... dxe5 {[%clk 0:02:37]} 19. Be3 {[%clk 0:01:30.1]} 19... c5
{[%clk 0:02:22.6]} 20. Qe2 {[%clk 0:01:26.1]} 20... Qc7 {[%clk 0:02:21.6]} 21.
Red1 {[%clk 0:01:22.7]} 21... c4 {[%clk 0:02:15.5]} 22. Nh5 {[%clk 0:01:09.2]}
22... Be7 {[%clk 0:01:15.5]} 23. Nxf6+ {[%clk 0:01:06.5]} 23... Bxf6 {[%clk
0:01:16.4]} 24. Qg4 {[%clk 0:01:05.8]} 24... Kh7 {[%clk 0:01:07.7]} 25. Rd2
{[%clk 0:01:05.4]} 25... bxc3 {[%clk 0:01:03.6]} 26. bxc3 {[%clk 0:01:04.4]}
26... Rb3 {[%clk 0:01:04.3]} 27. Rad1 {[%clk 0:00:56.5]} 27... Re7 {[%clk
0:01:02.5]} 28. Rc2 {[%clk 0:00:47.9]} 28... Qc6 {[%clk 0:00:59.4]} 29. f3
{[%clk 0:00:44.3]} 29... Qxa4 {[%clk 0:00:57.7]} 30. Rcd2 {[%clk 0:00:34.5]}
30... Rxc3 {[%clk 0:00:55.8]} 31. Rd6 {[%clk 0:00:33.8]} 31... Rxe3 {[%clk
0:00:53.8]} 32. Rxe6 {[%clk 0:00:32.3]} 32... Qxd1+ {[%clk 0:00:51.3]} 0-1

[Event "Late-Titled-Tuesday-Blitz-January-30-2024"]
[Site "Chess.com"]
[Date "2024.01.30"]
[Round "1"]
[White "Nemsko"]
[Black "Mikhail_Golubev"]
[Result "0-1"]
[WhiteElo "2348"]
[BlackElo "2647"]
[TimeControl "180+1"]
[EndTime "14:06:07 PST"]
[Termination "Mikhail_Golubev won by resignation"]

1. e4 {[%clk 0:03:00.9]} 1... c5 {[%clk 0:02:59.5]} 2. Nf3 {[%clk 0:03:00.8]}
2... d6 {[%clk 0:02:59.6]} 3. d4 {[%clk 0:03:00.7]} 3... Nf6 {[%clk 0:02:59.6]}
4. Nc3 {[%clk 0:03:00.1]} 4... cxd4 {[%clk 0:02:59.4]} 5. Nxd4 {[%clk 0:03:01]}
5... g6 {[%clk 0:02:59.6]} 6. Be3 {[%clk 0:03:00.9]} 6... Bg7 {[%clk 0:02:59.7]}
7. f3 {[%clk 0:03:01.6]} 7... a6 {[%clk 0:02:59.6]} 8. Qd2 {[%clk 0:03:02.2]}
8... Nbd7 {[%clk 0:02:59.3]} 9. O-O-O {[%clk 0:03:02.5]} 9... h5 {[%clk
0:02:58.8]} 10. h4 {[%clk 0:03:01.4]} 10... b5 {[%clk 0:02:56.3]} 11. Bd3 {[%clk
0:02:59.6]} 11... Bb7 {[%clk 0:02:51.2]} 12. Rhe1 {[%clk 0:02:57.1]} 12... Qc7
{[%clk 0:02:44.9]} 13. Kb1 {[%clk 0:02:57]} 13... Rc8 {[%clk 0:02:41.9]} 14.
Nce2 {[%clk 0:02:39.2]} 14... Ne5 {[%clk 0:02:36.8]} 15. Ng3 {[%clk 0:02:25.7]}
15... Nfd7 {[%clk 0:02:04.2]} 16. f4 {[%clk 0:02:20.6]} 16... Nc4 {[%clk
0:01:54.1]} 17. Bxc4 {[%clk 0:02:19.8]} 17... bxc4 {[%clk 0:01:54.2]} 18. c3
{[%clk 0:02:15.8]} 18... Nc5 {[%clk 0:01:37.3]} 19. Qc2 {[%clk 0:02:09.8]} 19...
Nd3 {[%clk 0:01:30.5]} 20. Rxd3 {[%clk 0:02:09.9]} 20... cxd3 {[%clk 0:01:29.7]}
21. Qxd3 {[%clk 0:02:10.8]} 21... Qc4 {[%clk 0:01:24.4]} 22. Qc2 {[%clk
0:02:04.3]} 22... O-O {[%clk 0:01:18.2]} 23. f5 {[%clk 0:02:02.9]} 23... e6
{[%clk 0:01:06.6]} 24. Rf1 {[%clk 0:01:45.6]} 24... Be5 {[%clk 0:00:51.3]} 25.
Nge2 {[%clk 0:01:45.3]} 25... Bxd4 {[%clk 0:00:48.1]} 26. Bxd4 {[%clk
0:01:38.7]} 26... e5 {[%clk 0:00:48.1]} 27. f6 {[%clk 0:01:23.1]} 27... exd4
{[%clk 0:00:44.8]} 28. Qd2 {[%clk 0:01:22.5]} 28... Bxe4+ {[%clk 0:00:40.7]} 29.
Ka1 {[%clk 0:01:20.5]} 29... dxc3 {[%clk 0:00:34.8]} 30. bxc3 {[%clk 0:01:10.9]}
30... Bd5 {[%clk 0:00:32]} 31. Rf4 {[%clk 0:01:06.3]} 31... Qxa2+ {[%clk
0:00:23.8]} 32. Qxa2 {[%clk 0:01:07.2]} 32... Bxa2 {[%clk 0:00:24]} 33. Kxa2
{[%clk 0:01:08.1]} 33... Rfe8 {[%clk 0:00:23.6]} 34. Rf2 {[%clk 0:01:04.6]}
34... Rb8 {[%clk 0:00:21.7]} 35. Nd4 {[%clk 0:01:04.3]} 35... Rec8 {[%clk
0:00:19]} 36. Rf1 {[%clk 0:01:04.4]} 36... Rxc3 {[%clk 0:00:17.9]} 0-1

[Event "Late-Titled-Tuesday-Blitz-January-30-2024"]
[Site "Chess.com"]
[Date "2024.01.30"]
[Round "1"]
[White "SuanFernandes"]
[Black "ozates"]
[Result "0-1"]
[WhiteElo "2318"]
[BlackElo "2639"]
[TimeControl "180+1"]
[EndTime "14:06:08 PST"]
[Termination "ozates won on time"]

1. d4 {[%clk 0:03:00.9]} 1... Nf6 {[%clk 0:03:00.1]} 2. c4 {[%clk 0:03:01.5]}
2... e6 {[%clk 0:03:00.4]} 3. Nf3 {[%clk 0:03:01.8]} 3... d5 {[%clk 0:03:00.9]}
4. Nc3 {[%clk 0:03:02.3]} 4... a6 {[%clk 0:02:56.3]} 5. cxd5 {[%clk 0:03:01.7]}
5... exd5 {[%clk 0:02:55.9]} 6. Bg5 {[%clk 0:03:02.3]} 6... Be6 {[%clk
0:02:48.1]} 7. e3 {[%clk 0:03:02.4]} 7... Nbd7 {[%clk 0:02:40.9]} 8. Bd3 {[%clk
0:03:02.6]} 8... c6 {[%clk 0:02:40.9]} 9. O-O {[%clk 0:02:57.5]} 9... Bd6 {[%clk
0:02:40.8]} 10. Bf4 {[%clk 0:02:58.2]} 10... Qc7 {[%clk 0:02:39.7]} 11. Qd2
{[%clk 0:02:58.8]} 11... O-O {[%clk 0:02:38.6]} 12. h3 {[%clk 0:02:59.2]} 12...
Rfe8 {[%clk 0:02:38.5]} 13. Rfc1 {[%clk 0:02:57.6]} 13... Rac8 {[%clk
0:02:37.4]} 14. b4 {[%clk 0:02:55.7]} 14... Bxf4 {[%clk 0:02:23.7]} 15. exf4
{[%clk 0:02:55.7]} 15... g6 {[%clk 0:02:23.3]} 16. Ne5 {[%clk 0:02:53]} 16...
Nh5 {[%clk 0:02:16.1]} 17. f5 {[%clk 0:02:34.6]} 17... Nxe5 {[%clk 0:02:12.5]}
18. dxe5 {[%clk 0:02:26.2]} 18... gxf5 {[%clk 0:02:10.1]} 19. Qg5+ {[%clk
0:02:23.4]} 19... Ng7 {[%clk 0:02:06.6]} 20. Re1 {[%clk 0:02:19.6]} 20... Qe7
{[%clk 0:02:05.6]} 21. Qh6 {[%clk 0:02:11.1]} 21... Qxb4 {[%clk 0:02:00.7]} 22.
Ne2 {[%clk 0:02:04.9]} 22... Kh8 {[%clk 0:01:54.8]} 23. Ng3 {[%clk 0:02:02.6]}
23... Rg8 {[%clk 0:01:54.4]} 24. Rab1 {[%clk 0:01:56.5]} 24... Qe7 {[%clk
0:01:53.2]} 25. f4 {[%clk 0:01:40.5]} 25... b5 {[%clk 0:01:52.4]} 26. Ne2 {[%clk
0:01:23]} 26... c5 {[%clk 0:01:47.1]} 27. g4 {[%clk 0:01:22.7]} 27... c4 {[%clk
0:01:46.5]} 28. Bc2 {[%clk 0:01:22.4]} 28... Qc5+ {[%clk 0:01:45]} 29. Kh1
{[%clk 0:01:21.9]} 29... d4 {[%clk 0:01:45.9]} 30. gxf5 {[%clk 0:01:18.5]} 30...
Nxf5 {[%clk 0:01:45.9]} 31. Qf6+ {[%clk 0:01:18.5]} 31... Ng7 {[%clk 0:01:41.9]}
32. Bxh7 {[%clk 0:00:54.8]} 32... Qd5+ {[%clk 0:01:37.6]} 33. Kh2 {[%clk
0:00:53.3]} 33... Qf3 {[%clk 0:01:35.6]} 34. Qh4 {[%clk 0:00:21.3]} 34... Nh5
{[%clk 0:01:35.3]} 35. Bxg8 {[%clk 0:00:03]} 35... Rxg8 {[%clk 0:01:36.2]} 36.
Rg1 {[%clk 0:00:02.4]} 36... Qxe2+ {[%clk 0:01:36]} 37. Kh1 {[%clk 0:00:02.5]}
37... Qe4+ {[%clk 0:01:35.7]} 38. Kh2 {[%clk 0:00:02.8]} 38... Qxf4+ {[%clk
0:01:35.6]} 39. Qxf4 {[%clk 0:00:02.4]} 39... Nxf4 {[%clk 0:01:36.5]} 40. Rxg8+
{[%clk 0:00:02.6]} 40... Kxg8 {[%clk 0:01:37.4]} 0-1

[Event "Late-Titled-Tuesday-Blitz-January-30-2024"]
[Site "Chess.com"]
[Date "2024.01.30"]
[Round "1"]
[White "dropstoneDP"]
[Black "RantomOpening"]
[Result "1-0"]
[WhiteElo "3061"]
[BlackElo "2535"]
[TimeControl "180+1"]
[EndTime "14:06:09 PST"]
[Termination "dropstoneDP won by resignation"]

1. e4 {[%clk 0:03:00.9]} 1... c5 {[%clk 0:02:59.9]} 2. Nf3 {[%clk 0:03:00.4]}
2... e6 {[%clk 0:02:59.9]} 3. d4 {[%clk 0:03:00.7]} 3... cxd4 {[%clk 0:03:00.8]}
4. Nxd4 {[%clk 0:03:01.5]} 4... Nf6 {[%clk 0:03:01.3]} 5. Nc3 {[%clk 0:03:01.6]}
5... Nc6 {[%clk 0:03:01.8]} 6. Ndb5 {[%clk 0:02:57.2]} 6... Bc5 {[%clk
0:03:01.8]} 7. Bf4 {[%clk 0:02:56.1]} 7... O-O {[%clk 0:03:01.9]} 8. Bc7 {[%clk
0:02:56]} 8... Qe7 {[%clk 0:03:02.1]} 9. Bd6 {[%clk 0:02:56.6]} 9... Bxd6 {[%clk
0:03:02.6]} 10. Qxd6 {[%clk 0:02:55.9]} 10... Qd8 {[%clk 0:03:02.8]} 11. O-O-O
{[%clk 0:02:55.4]} 11... a6 {[%clk 0:03:02.4]} 12. Nd4 {[%clk 0:02:56]} 12...
Ne7 {[%clk 0:03:02.8]} 13. a4 {[%clk 0:02:56.3]} 13... b5 {[%clk 0:02:58.7]} 14.
axb5 {[%clk 0:02:52.5]} 14... axb5 {[%clk 0:02:58.5]} 15. Bxb5 {[%clk 0:02:53]}
15... Ng6 {[%clk 0:02:26.9]} 16. Nb3 {[%clk 0:02:45.1]} 16... Bb7 {[%clk
0:02:14.3]} 17. f3 {[%clk 0:02:41.6]} 17... Ne8 {[%clk 0:02:12]} 18. Qxd7 {[%clk
0:02:33.9]} 18... Qg5+ {[%clk 0:02:10.1]} 19. Kb1 {[%clk 0:02:31.8]} 19... Rb8
{[%clk 0:02:03.1]} 20. g3 {[%clk 0:02:16.3]} 20... Ne5 {[%clk 0:02:01.6]} 21. f4
{[%clk 0:02:11.9]} 21... Nxd7 {[%clk 0:01:59.8]} 22. fxg5 {[%clk 0:02:11.9]}
22... Ne5 {[%clk 0:02:00]} 23. Nc5 {[%clk 0:02:04.7]} 23... Ba8 {[%clk
0:01:58.7]} 24. Nd7 {[%clk 0:01:31.1]} 24... Nxd7 {[%clk 0:01:52.4]} 25. Rxd7
{[%clk 0:01:22.9]} 25... Rxb5 {[%clk 0:01:52.4]} 26. Nxb5 {[%clk 0:01:23.8]}
26... Bc6 {[%clk 0:01:52.6]} 27. Rd8 {[%clk 0:01:24.4]} 27... Bxb5 {[%clk
0:01:52.6]} 28. Rhd1 {[%clk 0:01:22.7]} 28... Nc7 {[%clk 0:01:49.7]} 29. b3
{[%clk 0:01:21.4]} 29... Ne8 {[%clk 0:01:38.4]} 30. Kb2 {[%clk 0:01:19.4]} 30...
Bc6 {[%clk 0:01:38.6]} 31. e5 {[%clk 0:01:17.8]} 31... f6 {[%clk 0:01:26.5]} 32.
Rc8 {[%clk 0:01:17.5]} 32... Bf3 {[%clk 0:01:24.1]} 33. Rdd8 {[%clk 0:01:16.2]}
33... Bh5 {[%clk 0:01:22.5]} 34. gxf6 {[%clk 0:01:13.1]} 34... gxf6 {[%clk
0:01:23.4]} 35. exf6 {[%clk 0:01:13.3]} 35... Kf7 {[%clk 0:01:23.8]} 36. b4
{[%clk 0:01:07.5]} 36... Kxf6 {[%clk 0:01:23.7]} 37. b5 {[%clk 0:01:08.1]} 37...
Rg8 {[%clk 0:01:21.2]} 38. c4 {[%clk 0:00:42.8]} 38... Ke5 {[%clk 0:01:14.6]}
39. b6 {[%clk 0:00:42.4]} 39... Rf8 {[%clk 0:01:15.3]} 40. b7 {[%clk 0:00:36.7]}
40... Rf2+ {[%clk 0:01:14.9]} 41. Kc3 {[%clk 0:00:36.4]} 41... Rf3+ {[%clk
0:01:14.9]} 42. Kb4 {[%clk 0:00:34.2]} 42... Rf1 {[%clk 0:01:15.3]} 43. b8=Q+
{[%clk 0:00:34.5]} 1-0